bitfinex-derivatives/quotes_BTCF0:USTF0_20250406
["timestamp","ask_amount","ask_price","bid_price","bid_amount"]
[1743898967459,0.25528,83564.0,83563.0,0.46389081]
[1743898967660,0.25528,83564.0,83563.0,0.18389081]
[1743898967956,0.20268,83564.0,83563.0,0.28389081]
[1743898968144,0.202,83564.0,83563.0,0.28389081]
[1743898968855,0.18703422,83564.0,83563.0,0.28389081]
[1743898969152,0.002,83564.0,83563.0,0.28389081]
[1743898970049,0.002,83564.0,83563.0,0.28445893]
[1743898970551,0.002,83564.0,83563.0,0.35225893]
[1743898970960,0.002,83564.0,83563.0,0.76965893]
[1743898971756,0.002,83564.0,83563.0,0.76965899]
[1743898972550,0.002,83564.0,83563.0,0.91965899]
[1743898972960,0.002,83564.0,83563.0,0.66965899]
[1743898973167,0.002,83564.0,83563.0,0.94965899]
[1743898974052,0.002,83564.0,83563.0,1.26429024]
[1743898974358,0.002,83564.0,83563.0,0.98429024]
[1743898974750,0.002,83564.0,83563.0,1.21429024]
[1743898975155,0.002,83564.0,83563.0,0.98429024]
[1743898975356,0.002,83564.0,83563.0,1.24429024]
[1743898975772,8e-05,83567.0,83563.0,1.16048934]
[1743898976064,8e-05,83567.0,83566.0,0.0837979]
[1743898976252,8e-05,83567.0,83566.0,0.33310451]
[1743898976453,8e-05,83567.0,83566.0,0.35015599]
[1743898976959,0.20108,83567.0,83566.0,0.47795599]
[1743898977163,0.20208,83567.0,83566.0,0.47795599]
[1743898977457,0.20208,83567.0,83566.0,0.47795624]
[1743898978053,0.20208,83567.0,83566.0,0.41485624]
[1743898978351,0.20208,83567.0,83566.0,0.18485624]
[1743898978562,0.20268001,83567.0,83566.0,0.12015624]
[1743898978752,0.28547691,83567.0,83566.0,0.12015624]
[1743898978952,0.20168001,83567.0,83566.0,0.12015624]
[1743898979456,0.32738001,83567.0,83566.0,0.12015624]
[1743898980252,0.41117691,83567.0,83566.0,0.12015624]
[1743898985768,0.41117691,83567.0,83566.0,0.12004441]
[1743898986169,0.40519012,83567.0,83566.0,0.12004441]
[1743898986669,0.32139322,83567.0,83566.0,0.12004441]
[1743898986869,0.40519012,83567.0,83566.0,0.12004441]
[1743898987266,0.45895012,83567.0,83566.0,0.12004441]
[1743898987763,0.37515322,83567.0,83566.0,0.12004441]
[1743898988770,0.45895012,83567.0,83566.0,0.12004441]
[1743898989069,0.39505012,83567.0,83566.0,0.18404441]
[1743898989269,0.33225012,83567.0,83566.0,0.18404441]
[1743898989969,0.33225012,83567.0,83566.0,0.44404441]
[1743898990571,0.46255012,83567.0,83566.0,0.18404441]
[1743898991062,0.37875322,83567.0,83566.0,0.18404441]
[1743898991265,0.36977332,83567.0,83566.0,0.18404441]
[1743898992864,0.36977332,83567.0,83566.0,0.46404441]
[1743898993063,0.36977332,83567.0,83566.0,0.18404441]
[1743898994465,0.18571332,83567.0,83566.0,0.18404441]
[1743898994665,0.18571332,83567.0,83566.0,0.50584441]
[1743898994860,0.18571332,83567.0,83566.0,0.24584441]
[1743898995069,0.18571332,83567.0,83566.0,0.18404441]
[1743898995573,0.26951022,83567.0,83566.0,0.18404441]
[1743898996167,0.33011022,83567.0,83566.0,0.18404441]
[1743898996368,0.39291022,83567.0,83566.0,0.18404441]
[1743898997177,0.30911332,83567.0,83566.0,0.18404441]
[1743898998581,0.39291022,83567.0,83566.0,0.18404441]
[1743898999279,0.39291022,83567.0,83566.0,0.43404441]
[1743898999479,0.39291022,83567.0,83566.0,0.18404441]
[1743899000178,0.30911332,83567.0,83566.0,0.18404441]
[1743899001770,0.36251332,83567.0,83566.0,0.18404441]
[1743899004178,0.36251332,83567.0,83566.0,0.18411137]
[1743899004179,0.44631022,83567.0,83566.0,0.18411137]
[1743899005781,0.44631022,83567.0,83566.0,0.18404287]
[1743899005972,0.44631022,83567.0,83566.0,0.12004287]
[1743899007980,0.44631022,83567.0,83566.0,0.17874287]
[1743899008381,0.44631022,83567.0,83566.0,0.12004287]
[1743899009682,0.44631022,83567.0,83566.0,0.11977094]
[1743899009989,0.44631022,83567.0,83566.0,0.11977098]
[1743899012587,0.80711022,83567.0,83566.0,0.11977098]
[1743899015584,0.80711022,83567.0,83566.0,0.36977098]
[1743899015888,0.80711022,83567.0,83566.0,0.11977098]
[1743899016091,0.44639022,83567.0,83566.0,0.11977098]
[1743899016278,0.44639022,83567.0,83566.0,0.18037098]
[1743899016588,0.39291022,83567.0,83566.0,0.18037098]
[1743899016788,0.44639022,83567.0,83566.0,0.18037098]
[1743899020891,0.44635022,83567.0,83566.0,0.18054744]
[1743899022579,0.44635022,83567.0,83566.0,0.16204938]
[1743899022784,0.44635022,83567.0,83566.0,0.18053317]
[1743899023481,0.44635022,83567.0,83566.0,0.18054003]
[1743899024681,0.44635022,83567.0,83566.0,0.18049226]
[1743899028299,0.44635022,83567.0,83566.0,0.18054333]
[1743899030101,0.44635022,83567.0,83566.0,0.18049338]
[1743899033901,0.44635022,83567.0,83566.0,0.18050015]
[1743899038901,0.44635022,83567.0,83566.0,0.16204938]
[1743899039101,0.44635022,83567.0,83566.0,0.18047823]
[1743899039298,0.44635022,83567.0,83566.0,0.09668033]
[1743899042603,0.44635022,83567.0,83566.0,0.18047823]
[1743899042906,0.44635022,83567.0,83566.0,0.09668033]
[1743899044507,0.39291022,83567.0,83566.0,0.09668033]
[1743899044708,0.44579022,83567.0,83566.0,0.18047823]
[1743899045606,0.44579022,83567.0,83566.0,0.24387823]
[1743899049709,0.44579022,83567.0,83566.0,0.24406864]
[1743899049905,0.80659022,83567.0,83566.0,0.24406864]
[1743899050793,0.80647022,83567.0,83566.0,0.24406864]
[1743899051905,0.74587022,83567.0,83566.0,0.24406864]
[1743899053409,0.74587022,83567.0,83566.0,0.24415948]
[1743899054213,0.81017022,83567.0,83566.0,0.24415948]
[1743899057013,0.91789704,83567.0,83566.0,0.45814879]
[1743899057813,0.91190983,83567.0,83566.0,0.45814879]
[1743899058710,0.78480983,83567.0,83566.0,0.45814879]
[1743899058917,0.64825293,83567.0,83566.0,0.71814879]
[1743899059210,0.28745293,83567.0,83566.0,0.72814879]
[1743899059819,0.2784732,83567.0,83566.0,0.72814879]
[1743899060620,0.2784732,83567.0,83566.0,0.72814632]
[1743899061819,0.17074638,83567.0,83566.0,0.51415701]
[1743899062008,0.17014637,83567.0,83566.0,0.51415701]
[1743899063014,0.17214637,83567.0,83566.0,0.51415701]
[1743899064110,0.17214637,83567.0,83566.0,0.87495701]
[1743899064310,0.17214637,83567.0,83566.0,0.87495673]
[1743899064718,0.17214637,83567.0,83566.0,1.29235673]
[1743899068026,0.17214637,83567.0,83566.0,1.02235673]
[1743899068523,0.17214637,83567.0,83566.0,1.28235673]
[1743899068923,0.17282637,83567.0,83566.0,1.28235673]
[1743899069619,0.17282637,83567.0,83566.0,1.25364938]
[1743899069828,0.17282637,83567.0,83566.0,1.27235723]
[1743899070233,0.17282637,83567.0,83566.0,1.02235723]
[1743899070416,0.17282637,83567.0,83566.0,0.66155723]
[1743899070821,0.17282637,83567.0,83566.0,0.90155723]
[1743899071028,0.17282637,83567.0,83566.0,0.66155723]
[1743899071529,0.17282637,83567.0,83566.0,0.89155724]
[1743899071830,0.17282637,83567.0,83566.0,0.66155724]
[1743899072125,0.17282637,83567.0,83566.0,0.94155724]
[1743899072329,0.17282637,83567.0,83566.0,0.66155724]
[1743899072728,0.17282637,83567.0,83566.0,0.89155724]
[1743899072929,0.1661599,83567.0,83566.0,0.89155724]
[1743899073130,0.1661599,83567.0,83566.0,0.91155724]
[1743899073334,0.1661599,83567.0,83566.0,0.90155724]
[1743899074029,0.1661599,83567.0,83566.0,1.18642878]
[1743899074532,0.1668399,83567.0,83566.0,1.18642878]
[1743899074728,0.1668399,83567.0,83566.0,1.21642878]
[1743899075131,0.1668399,83567.0,83566.0,0.94642878]
[1743899075531,0.1668399,83567.0,83566.0,1.22642878]
[1743899075736,0.1661599,83567.0,83566.0,1.22642878]
[1743899075925,0.2308599,83567.0,83566.0,1.22642878]
[1743899076123,0.23145991,83567.0,83566.0,1.22642878]
[1743899076529,0.23145991,83567.0,83566.0,0.94642878]
[1743899077033,0.16675991,83567.0,83566.0,0.94642873]
[1743899077429,0.1661599,83567.0,83566.0,0.94642873]
[1743899078440,0.1661599,83567.0,83566.0,1.21642873]
[1743899078736,0.1661599,83567.0,83566.0,1.22642873]
[1743899079129,0.2187199,83567.0,83566.0,1.23642873]
[1743899079334,0.28281991,83567.0,83566.0,1.23642873]
[1743899079637,0.28281991,83567.0,83566.0,0.94642873]
[1743899079838,0.28281991,83567.0,83566.0,1.22642873]
[1743899080142,0.28281991,83567.0,83566.0,1.21642873]
[1743899080641,0.28281991,83567.0,83566.0,1.19937725]
[1743899080835,0.28281991,83567.0,83566.0,0.94637551]
[1743899081232,0.28281991,83567.0,83566.0,1.19637551]
[1743899081534,0.16675991,83567.0,83566.0,0.94637551]
[1743899081736,0.2186799,83567.0,83566.0,0.94637551]
[1743899082044,0.16675991,83567.0,83566.0,1.20637551]
[1743899082232,0.1661599,83567.0,83566.0,1.20637551]
[1743899082433,0.16675991,83567.0,83566.0,1.1876677]
[1743899082634,0.21931991,83567.0,83566.0,1.20637553]
[1743899082934,0.2187199,83567.0,83566.0,1.20637553]
[1743899084041,0.2187199,83567.0,83566.0,0.94637553]
[1743899084242,0.2194399,83567.0,83566.0,1.19637553]
[1743899084438,0.2194399,83567.0,83566.0,1.22637553]
[1743899084634,0.2194399,83567.0,83566.0,0.94637553]
[1743899084835,0.2194399,83567.0,83566.0,1.22637553]
[1743899085036,0.2194399,83567.0,83566.0,0.94637553]
[1743899085546,0.2194399,83567.0,83566.0,0.66150399]
[1743899085848,0.2194399,83567.0,83566.0,0.91150399]
[1743899086037,0.2187199,83567.0,83566.0,0.91150399]
[1743899086434,0.20974019,83567.0,83566.0,0.91150399]
[1743899086641,0.15718019,83567.0,83566.0,0.91150399]
[1743899088947,0.15119384,83567.0,83566.0,0.91150399]
[1743899090343,0.15119384,83567.0,83566.0,1.26768647]
[1743899091150,0.15119384,83567.0,83566.0,1.28155548]
[1743899091742,0.15119384,83567.0,83566.0,1.28155505]
[1743899092248,0.15119384,83567.0,83566.0,1.20428647]
[1743899092446,0.27219384,83567.0,83566.0,1.20428647]
[1743899092649,0.27279385,83567.0,83566.0,0.95428647]
[1743899092844,0.27219384,83567.0,83566.0,0.95428647]
[1743899093047,0.27219384,83567.0,83566.0,1.18428647]
[1743899093349,0.27287384,83567.0,83566.0,1.18428647]
[1743899093847,0.27287384,83567.0,83566.0,1.17787388]
[1743899094042,0.27283384,83567.0,83566.0,0.91787388]
[1743899094244,0.32555384,83567.0,83566.0,0.91787388]
[1743899094440,0.32555384,83567.0,83566.0,1.18787388]
[1743899094647,0.32555384,83567.0,83566.0,0.91787388]
[1743899095051,0.32555384,83567.0,83566.0,1.17787388]
[1743899095554,0.32555384,83567.0,83566.0,0.91787388]
[1743899096552,0.32555384,83567.0,83566.0,1.18787388]
[1743899096954,0.31657416,83567.0,83566.0,1.18787388]
[1743899097253,0.31657416,83567.0,83566.0,0.9178531]
[1743899097254,0.31593416,83567.0,83566.0,0.9178531]
[1743899097452,0.31653417,83567.0,83566.0,0.9178531]
[1743899098154,0.31653417,83567.0,83566.0,1.1778531]
[1743899098452,0.31653417,83567.0,83566.0,0.9178531]
[1743899098952,0.31653417,83567.0,83566.0,1.1878531]
[1743899099146,0.31653417,83567.0,83566.0,1.20172407]
[1743899099654,0.31653417,83567.0,83566.0,0.93172407]
[1743899100460,0.31653417,83567.0,83566.0,1.18172407]
[1743899100956,0.31653417,83567.0,83566.0,1.24422407]
[1743899101148,0.31593416,83567.0,83566.0,1.24422407]
[1743899101349,0.31593416,83567.0,83566.0,1.26422407]
[1743899101657,0.31593416,83567.0,83566.0,1.35094554]
[1743899101859,0.31593416,83567.0,83566.0,1.62094554]
[1743899102649,0.31593416,83567.0,83566.0,1.35094554]
[1743899102849,0.31593416,83567.0,83566.0,1.61094554]
[1743899103056,0.31593416,83567.0,83566.0,1.59094554]
[1743899103363,0.31593416,83567.0,83566.0,1.51457457]
[1743899103548,0.39973106,83567.0,83566.0,1.27457457]
[1743899103752,0.40033107,83567.0,83566.0,1.27457457]
[1743899103945,0.40033107,83567.0,83566.0,1.27459643]
[1743899104148,0.40033107,83567.0,83566.0,1.14407152]
[1743899104857,0.40033107,83567.0,83566.0,1.22786942]
[1743899105159,0.40033107,83567.0,83566.0,1.21399643]
[1743899105857,0.40033107,83567.0,83566.0,0.79659643]
[1743899107760,0.40033107,83567.0,83566.0,0.71279853]
[1743899109465,0.40033107,83567.0,83566.0,0.03630717]
[1743899111666,0.40033107,83567.0,83566.0,0.03605393]
[1743899112767,0.40033107,83567.0,83566.0,0.03545393]
[1743899113766,0.40033107,83567.0,83566.0,0.03529302]
[1743899114370,0.76113107,83567.0,83566.0,0.03529302]
[1743899115255,0.0838039,83560.0,83559.0,0.21000189]
[1743899115455,0.4452839,83560.0,83559.0,0.21060189]
[1743899116060,0.5597839,83560.0,83559.0,0.21060189]
[1743899116267,0.5597839,83560.0,83559.0,0.0006]
[1743899116871,0.6999939,83560.0,83559.0,0.0006]
[1743899117373,0.7009939,83560.0,83559.0,0.0006]
[1743899120762,0.0838089,83555.0,83554.0,0.1370092]
[1743899120962,0.0844489,83555.0,83554.0,0.1376492]
[1743899121669,0.2246589,83555.0,83554.0,0.4176492]
[1743899121870,0.2770589,83555.0,83554.0,0.1376492]
[1743899122073,0.2770589,83555.0,83554.0,0.4411492]
[1743899122271,0.19325,83555.0,83554.0,0.4411492]
[1743899123070,0.14085,83555.0,83554.0,0.4411492]
[1743899127175,0.14085,83555.0,83554.0,0.45922364]
[1743899127569,0.14085,83555.0,83554.0,0.45922535]
[1743899127779,0.14085,83555.0,83554.0,0.47569405]
[1743899133083,0.14085,83555.0,83554.0,0.4756834]
[1743899134979,0.14085,83555.0,83554.0,0.47568055]
[1743899140380,0.13186925,83555.0,83554.0,0.47568055]
[1743899140585,0.13262925,83555.0,83554.0,0.47568055]
[1743899141185,0.13262925,83555.0,83554.0,0.45921185]
[1743899142280,0.13262925,83555.0,83554.0,0.87661185]
[1743899142481,0.13186925,83555.0,83554.0,0.87661185]
[1743899146091,0.13186925,83555.0,83554.0,0.87648364]
[1743899146590,0.13186925,83555.0,83554.0,1.18938173]
[1743899146786,0.18556832,83578.0,83562.0,0.0838019]
[1743899146993,0.18556832,83578.0,83567.0,0.0837969]
[1743899146994,0.05196,83568.0,83567.0,0.0837969]
[1743899147189,0.0496,83570.0,83569.0,0.0837949]
[1743899147486,0.01369245,83571.0,83570.0,0.0837939]
[1743899147487,0.01385245,83571.0,83570.0,0.0837939]
[1743899147693,0.06661245,83571.0,83570.0,0.49838834]
[1743899147891,0.01377245,83571.0,83570.0,0.49838834]
[1743899148799,0.06537245,83571.0,83570.0,0.49838834]
[1743899148985,0.26937245,83571.0,83570.0,0.49838834]
[1743899150391,0.31967245,83571.0,83570.0,0.49838834]
[1743899150597,0.26937245,83571.0,83570.0,0.85918834]
[1743899151084,0.26937245,83571.0,83570.0,0.88918834]
[1743899151487,0.31967245,83571.0,83570.0,0.88918834]
[1743899154287,0.30666,83571.0,83570.0,1.17441881]
[1743899156599,0.30666,83571.0,83570.0,1.19093437]
[1743899158899,0.30666,83571.0,83570.0,0.9057039]
[1743899161999,0.30666,83571.0,83570.0,1.3231039]
[1743899163408,0.25636,83571.0,83570.0,1.2203039]
[1743899163592,0.206,83571.0,83570.0,1.1672039]
[1743899165002,7e-08,83571.0,83570.0,1.1672039]
[1743899165204,7e-08,83579.0,83578.0,0.0837859]
[1743899165397,0.10832683,83588.0,83587.0,0.0837769]
[1743899165589,0.10908683,83588.0,83587.0,0.73794437]
[1743899165791,0.10848682,83588.0,83587.0,0.73794437]
[1743899166095,0.10008,83600.0,83594.0,0.0837698]
[1743899166096,0.07416742,83595.0,83594.0,0.0837698]
[1743899166300,0.07492742,83595.0,83594.0,0.72700677]
[1743899166501,0.07492742,83595.0,83594.0,0.74396105]
[1743899167206,0.07492742,83595.0,83594.0,0.50396105]
[1743899167504,0.07592742,83595.0,83594.0,0.79396105]
[1743899167806,0.07592742,83595.0,83594.0,0.50396105]
[1743899168397,0.27592742,83595.0,83594.0,0.77396105]
[1743899168596,0.27592742,83595.0,83594.0,0.49009169]
[1743899168992,0.27592742,83595.0,83594.0,0.76009169]
[1743899169605,0.27592742,83595.0,83594.0,0.49009169]
[1743899169813,0.27592742,83595.0,83594.0,0.78009169]
[1743899170000,0.27592742,83595.0,83594.0,0.49009169]
[1743899170500,0.27592742,83595.0,83594.0,0.76009169]
[1743899170698,0.20176,83595.0,83594.0,0.49009169]
[1743899171110,0.20176,83595.0,83594.0,0.74009169]
[1743899171303,0.20176,83595.0,83594.0,0.49009169]
[1743899172510,0.20176,83595.0,83594.0,0.73009169]
[1743899172803,0.20176,83595.0,83594.0,0.76947268]
[1743899173008,0.20176,83595.0,83594.0,0.72947268]
[1743899173612,0.20176,83595.0,83594.0,0.7125184]
[1743899173803,0.20176,83595.0,83594.0,0.4725184]
[1743899174110,0.20176,83595.0,83594.0,0.7425184]
[1743899174411,0.20176,83595.0,83594.0,0.74247868]
[1743899174601,0.20176,83595.0,83594.0,0.47247868]
[1743899174804,0.20176,83595.0,83594.0,0.75247868]
[1743899175718,0.20176,83595.0,83594.0,0.47247868]
[1743899176307,0.20176,83595.0,83594.0,0.76247868]
[1743899176508,0.20176,83595.0,83594.0,0.73247868]
[1743899176807,0.20176,83595.0,83594.0,0.75247868]
[1743899177009,0.20176,83595.0,83594.0,0.47247868]
[1743899177218,0.20176,83595.0,83594.0,0.70247868]
[1743899177918,0.20176,83595.0,83594.0,0.47247868]
[1743899178119,0.20176,83595.0,83594.0,0.72247868]
[1743899178322,0.20176,83595.0,83594.0,0.47247868]
[1743899178922,0.20176,83595.0,83594.0,0.71906774]
[1743899179124,0.20176,83595.0,83594.0,0.48906774]
[1743899179311,0.20176,83595.0,83594.0,0.73906774]
[1743899179512,0.20176,83595.0,83594.0,0.48906774]
[1743899179721,0.20176,83595.0,83594.0,0.76906774]
[1743899179923,0.20176,83595.0,83594.0,0.48906774]
[1743899180220,0.20176,83595.0,83594.0,0.75906774]
[1743899180421,0.20176,83595.0,83594.0,0.48906774]
[1743899182529,0.20176,83595.0,83594.0,0.75906774]
[1743899182916,0.20176,83595.0,83594.0,0.48906774]
[1743899183423,0.20176,83595.0,83594.0,0.73906774]
[1743899183731,0.20176,83595.0,83594.0,0.76906774]
[1743899184221,0.20176,83595.0,83594.0,0.48906774]
[1743899185431,0.20176,83595.0,83594.0,0.48929275]
[1743899186825,0.20176,83595.0,83594.0,0.77929275]
[1743899187026,0.20176,83595.0,83594.0,0.48929275]
[1743899187428,0.20176,83595.0,83594.0,0.76929275]
[1743899187737,0.20176,83595.0,83594.0,0.48929275]
[1743899188129,0.20176,83595.0,83594.0,0.72929275]
[1743899188535,0.20176,83595.0,83594.0,0.48929275]
[1743899189234,0.20176,83595.0,83594.0,0.75932952]
[1743899189435,0.20176,83595.0,83594.0,0.48932952]
[1743899190136,0.20176,83595.0,83594.0,0.47274046]
[1743899192136,0.25452,83595.0,83594.0,0.73274046]
[1743899192336,0.20176,83595.0,83594.0,0.47258792]
[1743899192730,0.20176,83595.0,83594.0,0.47258785]
[1743899192941,0.20176,83595.0,83594.0,0.48902914]
[1743899193125,0.20176,83595.0,83594.0,0.73902914]
[1743899193536,0.20176,83595.0,83594.0,0.48902914]
[1743899193839,0.20176,83595.0,83594.0,0.72902914]
[1743899194141,0.20176,83595.0,83594.0,0.48902914]
[1743899194342,0.20176,83595.0,83594.0,0.77328388]
[1743899194635,0.20176,83595.0,83594.0,0.77326552]
[1743899194841,0.20176,83595.0,83594.0,1.00326552]
[1743899195035,0.2855288,83595.0,83594.0,0.39602423]
[1743899196742,0.3382888,83595.0,83594.0,0.39602423]
[1743899198246,0.3382888,83595.0,83594.0,0.3957334]
[1743899198447,0.3382888,83595.0,83594.0,0.11147866]
[1743899200038,0.3382888,83595.0,83594.0,0.11146178]
[1743899201847,0.3382888,83595.0,83594.0,0.11145992]
[1743899202146,0.3382888,83595.0,83594.0,0.17265992]
[1743899204051,0.3382888,83595.0,83594.0,0.17265933]
[1743899205047,0.3382888,83595.0,83594.0,0.05808953]
[1743899205248,0.4009888,83595.0,83594.0,0.05728953]
[1743899205747,0.0837779,83586.0,83585.0,0.23810475]
[1743899205947,0.4445779,83586.0,83585.0,0.23810475]
[1743899206649,0.7072779,83586.0,83585.0,0.23810475]
[1743899207041,0.7082779,83586.0,83585.0,0.23810475]
[1743899209344,0.0837809,83583.0,83582.0,0.1484815]
[1743899210242,0.2845409,83583.0,83582.0,0.1492415]
[1743899210443,0.2845409,83583.0,83582.0,0.06546]
[1743899210650,0.3498409,83583.0,83582.0,0.06546]
[1743899211047,0.3498409,83583.0,83582.0,0.03226]
[1743899211351,0.3498409,83583.0,83582.0,0.0315]
[1743899211556,0.62686,83583.0,83560.0,0.35653809]
[1743899211750,0.0838009,83563.0,83562.0,0.1044015]
[1743899212053,0.1372009,83563.0,83562.0,0.02124]
[1743899212351,0.2015009,83563.0,83562.0,0.02124]
[1743899212548,0.21371977,83563.0,83562.0,0.02124]
[1743899212755,0.21371977,83563.0,83562.0,0.00064]
[1743899212954,0.43167977,83563.0,83562.0,0.00064]
[1743899213341,0.0838019,83562.0,83561.0,0.00877775]
[1743899213547,0.0838049,83559.0,83558.0,0.0838059]
[1743899213757,0.0844449,83559.0,83558.0,0.0844459]
[1743899214555,0.1373249,83559.0,83558.0,0.0844459]
[1743899214856,0.3373249,83559.0,83558.0,0.1151459]
[1743899215153,0.3372849,83559.0,83558.0,0.1469459]
[1743899215353,0.3372849,83559.0,83558.0,0.06314]
[1743899215553,0.3372849,83559.0,83558.0,0.07224102]
[1743899215752,0.3372849,83559.0,83558.0,0.04044102]
[1743899215948,0.0838109,83553.0,83552.0,0.0307]
[1743899216148,0.44549091,83553.0,83552.0,0.03138]
[1743899216445,0.083824,83540.0,83526.0,0.5012371]
[1743899216753,0.444626,83538.0,83537.0,0.87921401]
[1743899216956,0.44566601,83538.0,83537.0,0.87921401]
[1743899217140,0.51016601,83538.0,83537.0,0.87921401]
[1743899217548,0.51016601,83538.0,83537.0,0.0006]
[1743899217755,0.51016601,83538.0,83537.0,0.01765173]
[1743899218052,0.53178601,83538.0,83537.0,0.10147873]
[1743899218254,0.53178601,83538.0,83537.0,0.10207873]
[1743899218443,0.47886601,83538.0,83537.0,0.10207873]
[1743899218643,0.53174601,83538.0,83537.0,0.10207873]
[1743899218844,0.53174601,83538.0,83537.0,0.13227873]
[1743899219054,0.73174601,83538.0,83537.0,0.13227873]
[1743899221358,0.73174601,83538.0,83537.0,0.114627]
[1743899221549,0.73174601,83538.0,83537.0,0.16421136]
[1743899221750,0.73174601,83538.0,83537.0,0.17326712]
[1743899226561,0.64566601,83538.0,83537.0,0.17326712]
[1743899226751,0.64566601,83538.0,83537.0,0.42326712]
[1743899227061,0.20104001,83538.0,83537.0,0.81406712]
[1743899227257,0.2,83538.0,83537.0,0.81406712]
[1743899227659,0.2,83538.0,83537.0,0.96406712]
[1743899227854,0.0528,83542.0,83541.0,0.083823]
[1743899228158,0.0528,83542.0,83541.0,0.38150736]
[1743899228661,0.0528,83542.0,83541.0,0.38153195]
[1743899228851,0.0528,83542.0,83541.0,0.41363195]
[1743899229053,0.0538,83542.0,83541.0,0.41363195]
[1743899230161,0.0538,83542.0,83541.0,0.41423195]
[1743899230554,0.201,83542.0,83541.0,0.41423195]
[1743899230755,0.20204001,83542.0,83541.0,0.44663195]
[1743899230959,0.20204001,83542.0,83541.0,0.41663195]
[1743899231759,0.20204001,83542.0,83541.0,0.83403195]
[1743899231964,0.201,83542.0,83541.0,0.83403195]
[1743899232267,0.201,83542.0,83541.0,0.82403195]
[1743899233060,0.201,83542.0,83541.0,0.82397406]
[1743899233665,0.201,83542.0,83541.0,0.85397406]
[1743899233855,0.201,83542.0,83541.0,0.58397406]
[1743899234057,0.20208,83542.0,83541.0,0.81397406]
[1743899234262,0.201,83542.0,83541.0,0.81395563]
[1743899234466,0.201,83542.0,83541.0,0.58395563]
[1743899234768,0.20208,83542.0,83541.0,0.84395563]
[1743899234965,0.201,83542.0,83541.0,0.84395563]
[1743899235162,0.201,83542.0,83541.0,0.58395563]
[1743899235466,0.20204001,83542.0,83541.0,0.85395563]
[1743899236362,0.20204001,83542.0,83541.0,0.85499556]
[1743899236669,0.20204001,83542.0,83541.0,0.82499556]
[1743899237164,0.20204001,83542.0,83541.0,0.81499556]
[1743899237474,0.20204001,83542.0,83541.0,0.86499556]
[1743899237964,0.20204001,83542.0,83541.0,0.58504129]
[1743899238268,0.20204001,83542.0,83541.0,0.86504129]
[1743899238564,0.20204001,83542.0,83541.0,0.83504129]
[1743899238768,0.20204001,83542.0,83541.0,0.58504129]
[1743899239469,0.20204001,83542.0,83541.0,0.84504129]
[1743899239765,0.20204001,83542.0,83541.0,0.58504129]
[1743899239966,0.20204001,83542.0,83541.0,0.83504129]
[1743899240359,0.201,83542.0,83541.0,0.81736293]
[1743899240558,0.18549432,83566.0,83560.0,0.0838039]
[1743899240852,0.05360001,83561.0,83560.0,0.14346169]
[1743899241057,0.00104001,83561.0,83560.0,0.14346169]
[1743899241259,0.05360001,83561.0,83560.0,0.14346169]
[1743899241765,0.17066291,83561.0,83560.0,0.14346169]
[1743899242065,0.20116291,83561.0,83560.0,0.14346169]
[1743899242365,0.20116291,83561.0,83560.0,0.40346169]
[1743899242563,0.20116291,83561.0,83560.0,0.14346169]
[1743899242964,0.40116291,83561.0,83560.0,0.14346169]
[1743899244162,0.40116291,83561.0,83560.0,0.05965779]
[1743899244363,0.76196291,83561.0,83560.0,0.05965779]
[1743899246969,0.76196291,83561.0,83560.0,0.01775629]
[1743899247167,0.76196291,83561.0,83560.0,0.10156019]
[1743899248774,0.76196291,83561.0,83560.0,0.10154383]
[1743899250678,0.76196291,83561.0,83560.0,0.10153974]
[1743899251468,0.76180291,83561.0,83560.0,0.10153974]
[1743899253078,0.77976291,83561.0,83560.0,0.10153974]
[1743899253279,0.76172291,83561.0,83560.0,0.10153974]
[1743899253870,0.76176291,83561.0,83560.0,0.10153974]
[1743899259476,0.90535823,83561.0,83560.0,0.10153974]
[1743899259887,0.90535823,83561.0,83560.0,0.10158823]
[1743899260787,0.85303823,83561.0,83560.0,0.10158823]
[1743899260989,0.85303823,83561.0,83560.0,0.38158823]
[1743899261188,0.90519823,83561.0,83560.0,0.10158823]
[1743899262283,0.90519823,83561.0,83560.0,0.01778433]
[1743899262679,0.76160291,83561.0,83560.0,0.01778433]
[1743899263289,0.76160291,83561.0,83560.0,0.10158823]
[1743899263490,0.76160291,83561.0,83560.0,0.10160982]
[1743899263788,0.70944291,83561.0,83560.0,0.10160982]
[1743899264089,0.76156291,83561.0,83560.0,0.10160982]
[1743899264278,0.76156291,83561.0,83560.0,0.16758471]
[1743899264475,0.76156291,83561.0,83560.0,0.19988471]
[1743899267090,0.76148291,83561.0,83560.0,0.19988471]
[1743899268291,0.76048291,83561.0,83560.0,0.19988471]
[1743899270892,0.76048291,83561.0,83560.0,0.19995273]
[1743899271995,0.70844291,83561.0,83560.0,0.13435273]
[1743899272197,0.79290291,83561.0,83560.0,0.13435273]
[1743899272588,0.79290291,83561.0,83560.0,0.05054883]
[1743899274384,0.76040291,83561.0,83560.0,0.13435273]
[1743899274685,0.76040291,83561.0,83560.0,0.16465273]
[1743899276492,0.76040291,83561.0,83560.0,0.16466387]
[1743899277395,0.72798291,83561.0,83560.0,0.16466387]
[1743899277593,0.72798291,83561.0,83560.0,0.19606387]
[1743899277992,0.61368001,83561.0,83560.0,0.48606387]
[1743899278384,0.56184001,83561.0,83560.0,0.48606387]
[1743899278586,0.61372001,83561.0,83560.0,0.48606387]
[1743899281094,0.61372001,83561.0,83560.0,0.43606387]
[1743899281294,0.64432001,83561.0,83560.0,0.44606387]
[1743899281496,0.64432001,83561.0,83560.0,0.19606387]
[1743899281694,0.64432001,83561.0,83560.0,0.87346387]
[1743899282198,0.28352001,83561.0,83560.0,1.23426387]
[1743899282388,0.28352001,83561.0,83560.0,1.51961378]
[1743899282589,0.28248,83561.0,83560.0,1.51961378]
[1743899283588,0.2306,83561.0,83560.0,1.51961378]
[1743899284999,0.2306,83561.0,83560.0,1.22822604]
[1743899285190,0.2612,83561.0,83560.0,0.86802604]
[1743899285390,0.26228,83561.0,83560.0,1.10802604]
[1743899285801,0.26228,83561.0,83560.0,0.86802604]
[1743899286398,0.26228,83561.0,83560.0,1.11798864]
[1743899286601,0.23168,83561.0,83560.0,1.15048864]
[1743899286800,0.2306,83561.0,83560.0,1.15054195]
[1743899286999,0.2,83561.0,83560.0,1.15054195]
[1743899288293,0.2,83561.0,83560.0,1.16701528]
[1743899290198,0.2316,83561.0,83560.0,1.16701528]
[1743899292205,0.2316,83561.0,83560.0,1.06175881]
[1743899292501,0.2648,83561.0,83560.0,1.06175881]
[1743899292803,0.26584001,83561.0,83560.0,1.09175881]
[1743899293299,0.26584001,83561.0,83560.0,1.07175881]
[1743899293603,0.2648,83561.0,83560.0,0.82175881]
[1743899293801,0.26584001,83561.0,83560.0,1.08175881]
[1743899293997,0.2648,83561.0,83560.0,1.08177873]
[1743899295904,0.2648,83561.0,83560.0,1.09177158]
[1743899297108,0.2648,83561.0,83560.0,0.82177158]